[Event "January 9 Early 2024"]
[Site "https://www.chess.com"]
[Date "2024.01.11"]
[Round "6"]
[White "Suyarov, Mukhammadzokhid"]
[Black "Belov, Alexei"]
[Result "0-1"]
[Board "168"]
[TimeControl "180+1"]
[WhiteFideId "14210495"]
[BlackFideId "4128206"]
[WhiteElo "2746"]
[BlackElo "2562"]
[WhiteTeam "UZB"]
[BlackTeam "RUS"]
[WhiteClock "0:00:01"]
[BlackClock "0:00:10"]

1. e4 {[%clk 0:03:00]}  e6 {[%clk 0:03:00]} 2. d4 {[%clk 0:03:00]}  d5 {[%clk 0:03:00]} 3. Nc3 {[%clk 0:03:01]}  Nf6 {[%clk 0:02:59]} 4. e5 {[%clk 0:03:01]}  Ne4 {[%clk 0:02:59]} 5. Nxe4 {[%clk 0:03:00]}  dxe4 {[%clk 0:03:00]} 6. Be3 {[%clk 0:03:00]}  c5 {[%clk 0:03:00]} 7. dxc5 {[%clk 0:03:00]}  Nd7 {[%clk 0:02:58]} 8. c3 {[%clk 0:02:58]}  Qc7 {[%clk 0:02:55]} 9. b4 {[%clk 0:02:56]}  b6 {[%clk 0:02:55]} 10. cxb6 {[%clk 0:02:11]}  Qxc3+ {[%clk 0:02:47]} 11. Bd2 {[%clk 0:02:10]}  Qxe5 {[%clk 0:02:45]} 12. bxa7 {[%clk 0:02:11]}  Rxa7 {[%clk 0:02:32]} 13. Ne2 {[%clk 0:02:10]}  Ba6 {[%clk 0:02:21]} 14. Rc1 {[%clk 0:02:04]}  Be7 {[%clk 0:02:06]} 15. Bc3 {[%clk 0:01:01]}  Qg5 {[%clk 0:01:34]} 16. Bd2 {[%clk 0:00:53]}  Qe5 {[%clk 0:01:06]} 17. Bc3 {[%clk 0:00:53]}  Qg5 {[%clk 0:01:06]} 18. Nd4 {[%clk 0:00:48]}  Bxf1 {[%clk 0:01:02]} 19. Kxf1 {[%clk 0:00:49]}  Rxa2 {[%clk 0:00:57]} 20. h4 {[%clk 0:00:37]}  Qf4 {[%clk 0:00:52]} 21. Ne2 {[%clk 0:00:31]}  Qg4 {[%clk 0:00:47]} 22. Rh3 {[%clk 0:00:24]}  Bxh4 {[%clk 0:00:41]} 23. Be1 {[%clk 0:00:20]}  O-O {[%clk 0:00:39]} 24. Rxh4 {[%clk 0:00:08]}  Qxh4 {[%clk 0:00:35]} 25. Qxd7 {[%clk 0:00:08]}  e3 {[%clk 0:00:25]} 26. Ng3 {[%clk 0:00:03]}  exf2 {[%clk 0:00:23]} 27. Bxf2 {[%clk 0:00:02]}  Rxf2+ {[%clk 0:00:15]} 28. Kxf2 {[%clk 0:00:03]}  Qf4+ {[%clk 0:00:16]} 29. Ke2 {[%clk 0:00:03]}  Qxc1 {[%clk 0:00:16]} 30. Qd4 {[%clk 0:00:03]}  Rc8 {[%clk 0:00:15]} 31. Ne4 {[%clk 0:00:03]}  h6 {[%clk 0:00:14]} 32. Kf3 {[%clk 0:00:02]}  Qc4 {[%clk 0:00:11]} 33. Qe3 {[%clk 0:00:01]}  Qd5 {[%clk 0:00:11]} 34. Qe2 {[%clk 0:00:01]}  Rc4 {[%clk 0:00:10]} 35. Kf4 {[%clk 0:00:01]}  f5 {[%clk 0:00:10]} 0-1

[Event "January 9 Early 2024"]
[Site "https://www.chess.com"]
[Date "2024.01.11"]
[Round "6"]
[White "Sanhueza, Cristian"]
[Black "Galchenko, Matvey"]
[Result "0-1"]
[Board "170"]
[TimeControl "180+1"]
[WhiteFideId "116815"]
[BlackFideId "24175480"]
[WhiteElo "2629"]
[BlackElo "2908"]
[WhiteTeam "ARG"]
[BlackTeam "FID"]
[WhiteClock "0:00:20"]
[BlackClock "0:00:04"]

1. e4 {[%clk 0:03:00]}  e6 {[%clk 0:02:57]} 2. d4 {[%clk 0:02:59]}  d5 {[%clk 0:02:57]} 3. Nd2 {[%clk 0:03:00]}  a6 {[%clk 0:02:57]} 4. Ngf3 {[%clk 0:02:59]}  Nf6 {[%clk 0:02:57]} 5. Bd3 {[%clk 0:02:57]}  c5 {[%clk 0:02:57]} 6. exd5 {[%clk 0:02:54]}  exd5 {[%clk 0:02:57]} 7. O-O {[%clk 0:02:53]}  c4 {[%clk 0:02:42]} 8. Re1+ {[%clk 0:02:53]}  Be7 {[%clk 0:02:43]} 9. Bf1 {[%clk 0:02:54]}  O-O {[%clk 0:02:43]} 10. b3 {[%clk 0:02:49]}  b5 {[%clk 0:02:38]} 11. bxc4 {[%clk 0:02:40]}  bxc4 {[%clk 0:02:02]} 12. Rb1 {[%clk 0:02:36]}  Nc6 {[%clk 0:01:59]} 13. c3 {[%clk 0:02:30]}  Bf5 {[%clk 0:01:56]} 14. Rb7 {[%clk 0:02:27]}  Bd6 {[%clk 0:01:32]} 15. Ne5 {[%clk 0:02:20]}  Na5 {[%clk 0:01:29]} 16. Rb2 {[%clk 0:01:47]}  Ba3 {[%clk 0:01:17]} 17. Rb8 {[%clk 0:01:33]}  Rxb8 {[%clk 0:01:17]} 18. Bxa3 {[%clk 0:01:33]}  Re8 {[%clk 0:01:17]} 19. Qa4 {[%clk 0:01:31]}  Qc7 {[%clk 0:01:06]} 20. Ndf3 {[%clk 0:01:29]}  Ne4 {[%clk 0:00:33]} 21. Bb4 {[%clk 0:01:30]}  Nb7 {[%clk 0:00:33]} 22. Nc6 {[%clk 0:01:28]}  Rbc8 {[%clk 0:00:34]} 23. Na5 {[%clk 0:00:49]}  Nxa5 {[%clk 0:00:25]} 24. Bxa5 {[%clk 0:00:50]}  Qd7 {[%clk 0:00:23]} 25. Qa3 {[%clk 0:00:49]}  f6 {[%clk 0:00:20]} 26. Nh4 {[%clk 0:00:49]}  Be6 {[%clk 0:00:17]} 27. f3 {[%clk 0:00:43]}  Nd6 {[%clk 0:00:17]} 28. g3 {[%clk 0:00:36]}  Nb5 {[%clk 0:00:16]} 29. Qc1 {[%clk 0:00:34]}  g5 {[%clk 0:00:16]} 30. Ng2 {[%clk 0:00:34]}  Bh3 {[%clk 0:00:17]} 31. Ne3 {[%clk 0:00:30]}  Bxf1 {[%clk 0:00:17]} 32. Kxf1 {[%clk 0:00:28]}  Re6 {[%clk 0:00:11]} 33. g4 {[%clk 0:00:22]}  Rce8 {[%clk 0:00:10]} 34. Nf5 {[%clk 0:00:22]}  Rxe1+ {[%clk 0:00:10]} 35. Qxe1 {[%clk 0:00:22]}  Rxe1+ {[%clk 0:00:10]} 36. Kxe1 {[%clk 0:00:23]}  h5 {[%clk 0:00:09]} 37. h3 {[%clk 0:00:22]}  h4 {[%clk 0:00:10]} 38. Kd2 {[%clk 0:00:22]}  Qb7 {[%clk 0:00:07]} 39. Bb4 {[%clk 0:00:21]}  Qb8 {[%clk 0:00:07]} 40. Ne7+ {[%clk 0:00:19]}  Kf7 {[%clk 0:00:08]} 41. Nxd5 {[%clk 0:00:19]}  Qh2+ {[%clk 0:00:09]} 42. Ke3 {[%clk 0:00:19]}  Qxh3 {[%clk 0:00:04]} 43. Nb6 {[%clk 0:00:20]}  Qf1 {[%clk 0:00:04]} 44. Nxc4 {[%clk 0:00:20]}  Qxc4 {[%clk 0:00:04]} 0-1

[Event "January 9 Early 2024"]
[Site "https://www.chess.com"]
[Date "2024.01.11"]
[Round "6"]
[White "Bodnaruk, Anastasia"]
[Black "Boruchovsky, Avital"]
[Result "0-1"]
[Board "171"]
[TimeControl "180+1"]
[WhiteFideId "4181751"]
[BlackFideId "2800055"]
[WhiteElo "2553"]
[BlackElo "2775"]
[WhiteTeam "RUS"]
[BlackTeam "ISR"]
[WhiteClock "0:00:01"]
[BlackClock "0:00:20"]

1. e4 {[%clk 0:03:00]}  e6 {[%clk 0:02:59]} 2. d4 {[%clk 0:03:00]}  d5 {[%clk 0:03:00]} 3. e5 {[%clk 0:03:00]}  c5 {[%clk 0:02:59]} 4. c3 {[%clk 0:03:01]}  Bd7 {[%clk 0:02:59]} 5. Nf3 {[%clk 0:03:01]}  Nc6 {[%clk 0:02:59]} 6. Be2 {[%clk 0:02:57]}  cxd4 {[%clk 0:02:48]} 7. cxd4 {[%clk 0:02:57]}  Nge7 {[%clk 0:02:48]} 8. Na3 {[%clk 0:02:56]}  a6 {[%clk 0:02:45]} 9. Nc2 {[%clk 0:02:52]}  h5 {[%clk 0:02:45]} 10. O-O {[%clk 0:02:39]}  Nf5 {[%clk 0:02:45]} 11. Bd3 {[%clk 0:02:36]}  Be7 {[%clk 0:02:44]} 12. Rb1 {[%clk 0:02:30]}  g5 {[%clk 0:02:16]} 13. Bxf5 {[%clk 0:02:20]}  exf5 {[%clk 0:02:16]} 14. Nfe1 {[%clk 0:02:20]}  f4 {[%clk 0:02:09]} 15. Nd3 {[%clk 0:02:15]}  h4 {[%clk 0:02:04]} 16. Nc5 {[%clk 0:02:08]}  b6 {[%clk 0:01:54]} 17. Nb7 {[%clk 0:01:59]}  Qc7 {[%clk 0:01:54]} 18. Nd6+ {[%clk 0:02:00]}  Bxd6 {[%clk 0:01:54]} 19. exd6 {[%clk 0:02:00]}  Qxd6 {[%clk 0:01:55]} 20. Re1+ {[%clk 0:02:00]}  Kf8 {[%clk 0:01:47]} 21. b3 {[%clk 0:01:45]}  b5 {[%clk 0:01:47]} 22. h3 {[%clk 0:01:08]}  Kg7 {[%clk 0:01:46]} 23. Qd3 {[%clk 0:00:59]}  Rhe8 {[%clk 0:01:33]} 24. Bd2 {[%clk 0:00:56]}  Qg6 {[%clk 0:01:31]} 25. Qxg6+ {[%clk 0:00:54]}  Kxg6 {[%clk 0:01:32]} 26. Nb4 {[%clk 0:00:47]}  Nxb4 {[%clk 0:01:09]} 27. Bxb4 {[%clk 0:00:46]}  Rxe1+ {[%clk 0:01:07]} 28. Rxe1 {[%clk 0:00:46]}  Rc8 {[%clk 0:01:08]} 29. Bc5 {[%clk 0:00:45]}  g4 {[%clk 0:00:56]} 30. hxg4 {[%clk 0:00:27]}  Bxg4 {[%clk 0:00:57]} 31. f3 {[%clk 0:00:27]}  Be6 {[%clk 0:00:56]} 32. Kf2 {[%clk 0:00:27]}  Rh8 {[%clk 0:00:46]} 33. Rh1 {[%clk 0:00:20]}  f6 {[%clk 0:00:46]} 34. Bd6 {[%clk 0:00:19]}  Kg5 {[%clk 0:00:45]} 35. Bc5 {[%clk 0:00:10]}  Bf5 {[%clk 0:00:45]} 36. Bd6 {[%clk 0:00:10]}  a5 {[%clk 0:00:45]} 37. Bc5 {[%clk 0:00:06]}  b4 {[%clk 0:00:44]} 38. Bd6 {[%clk 0:00:05]}  Ra8 {[%clk 0:00:19]} 39. Rc1 {[%clk 0:00:03]}  a4 {[%clk 0:00:19]} 40. Bxb4 {[%clk 0:00:02]}  axb3 {[%clk 0:00:19]} 41. axb3 {[%clk 0:00:02]}  Ra2+ {[%clk 0:00:19]} 42. Kg1 {[%clk 0:00:03]}  h3 {[%clk 0:00:20]} 43. gxh3 {[%clk 0:00:03]}  Bxh3 {[%clk 0:00:21]} 44. Be7 {[%clk 0:00:02]}  Kh4 {[%clk 0:00:20]} 45. Kh1 {[%clk 0:00:01]}  Kg3 {[%clk 0:00:20]} 0-1

[Event "January 9 Early 2024"]
[Site "https://www.chess.com"]
[Date "2024.01.11"]
[Round "6"]
[White "Cuenca Jimenez, Jose Fernando"]
[Black "Mesquita, Eduardo Barbosa"]
[Result "1-0"]
[Board "176"]
[TimeControl "180+1"]
[WhiteFideId "2255570"]
[BlackFideId "22757163"]
[WhiteElo "2687"]
[BlackElo "2441"]
[WhiteTeam "ESP"]
[BlackTeam "BRA"]
[WhiteClock "0:00:20"]
[BlackClock "0:00:02"]

1. d4 {[%clk 0:03:00]}  d5 {[%clk 0:03:00]} 2. Bf4 {[%clk 0:03:01]}  Nf6 {[%clk 0:03:00]} 3. e3 {[%clk 0:03:02]}  e6 {[%clk 0:03:00]} 4. Nf3 {[%clk 0:03:01]}  c5 {[%clk 0:03:00]} 5. c3 {[%clk 0:03:02]}  Nbd7 {[%clk 0:02:57]} 6. Nbd2 {[%clk 0:03:01]}  Be7 {[%clk 0:02:56]} 7. Bd3 {[%clk 0:03:02]}  O-O {[%clk 0:02:55]} 8. Ne5 {[%clk 0:03:02]}  Nb6 {[%clk 0:02:53]} 9. g4 {[%clk 0:03:00]}  Nfd7 {[%clk 0:02:50]} 10. Bg3 {[%clk 0:02:42]}  f6 {[%clk 0:02:46]} 11. Nxd7 {[%clk 0:02:39]}  Bxd7 {[%clk 0:02:45]} 12. Qc2 {[%clk 0:02:39]}  h6 {[%clk 0:02:32]} 13. Nf3 {[%clk 0:02:35]}  e5 {[%clk 0:02:28]} 14. Bh7+ {[%clk 0:02:32]}  Kh8 {[%clk 0:02:27]} 15. Nh4 {[%clk 0:02:32]}  e4 {[%clk 0:02:00]} 16. Bf5 {[%clk 0:02:31]}  Be8 {[%clk 0:01:53]} 17. dxc5 {[%clk 0:02:20]}  Bxc5 {[%clk 0:01:52]} 18. Ng6+ {[%clk 0:02:00]}  Bxg6 {[%clk 0:01:52]} 19. Bxg6 {[%clk 0:02:01]}  Rc8 {[%clk 0:01:46]} 20. Rd1 {[%clk 0:01:52]}  Bd6 {[%clk 0:01:31]} 21. Kf1 {[%clk 0:01:47]}  Rc4 {[%clk 0:01:06]} 22. b3 {[%clk 0:01:33]}  Rc6 {[%clk 0:00:53]} 23. c4 {[%clk 0:01:31]}  Qe7 {[%clk 0:00:46]} 24. Qb1 {[%clk 0:01:12]}  dxc4 {[%clk 0:00:30]} 25. Bxe4 {[%clk 0:01:10]}  Bxg3 {[%clk 0:00:25]} 26. Bxc6 {[%clk 0:01:06]}  Bxf2 {[%clk 0:00:20]} 27. Kxf2 {[%clk 0:01:07]}  bxc6 {[%clk 0:00:18]} 28. Qf5 {[%clk 0:01:00]}  Nd5 {[%clk 0:00:15]} 29. Rhe1 {[%clk 0:00:57]}  c3 {[%clk 0:00:09]} 30. e4 {[%clk 0:00:44]}  Qc5+ {[%clk 0:00:09]} 31. Kg3 {[%clk 0:00:43]}  c2 {[%clk 0:00:08]} 32. Rc1 {[%clk 0:00:41]}  Qc3+ {[%clk 0:00:08]} 33. Qf3 {[%clk 0:00:40]}  Qe5+ {[%clk 0:00:07]} 34. Kg2 {[%clk 0:00:40]}  Nf4+ {[%clk 0:00:06]} 35. Kh1 {[%clk 0:00:41]}  Ne6 {[%clk 0:00:06]} 36. Qf5 {[%clk 0:00:36]}  Qxf5 {[%clk 0:00:02]} 37. exf5 {[%clk 0:00:30]}  Nd4 {[%clk 0:00:02]} 38. Re4 {[%clk 0:00:29]}  c5 {[%clk 0:00:02]} 39. b4 {[%clk 0:00:25]}  Rb8 {[%clk 0:00:02]} 40. bxc5 {[%clk 0:00:20]}  Rb1 {[%clk 0:00:02]} 41. Ree1 {[%clk 0:00:20]}  Ne2 {[%clk 0:00:02]} 42. Rxb1 {[%clk 0:00:20]}  cxb1=Q {[%clk 0:00:02]} 43. Rxb1 {[%clk 0:00:21]}  Nd4 {[%clk 0:00:03]} 44. Rd1 {[%clk 0:00:19]}  Nc6 {[%clk 0:00:02]} 45. Rd6 {[%clk 0:00:20]} 1-0

[Event "January 9 Early 2024"]
[Site "https://www.chess.com"]
[Date "2024.01.11"]
[Round "6"]
[White "Stojanovski, Sandi"]
[Black "Korol, Dimitry"]
[Result "1/2-1/2"]
[Board "177"]
[TimeControl "180+1"]
[WhiteFideId "1403249"]
[BlackFideId "14108003"]
[WhiteElo "2553"]
[BlackElo "2355"]
[WhiteTeam "DEN"]
[BlackTeam "UKR"]
[WhiteClock "0:00:18"]
[BlackClock "0:00:02"]

1. d3 {[%clk 0:03:00]}  c5 {[%clk 0:02:56]} 2. Nf3 {[%clk 0:03:00]}  g6 {[%clk 0:02:57]} 3. g3 {[%clk 0:03:01]}  Bg7 {[%clk 0:02:57]} 4. Bg2 {[%clk 0:03:01]}  Nc6 {[%clk 0:02:58]} 5. O-O {[%clk 0:03:02]}  e5 {[%clk 0:02:57]} 6. c4 {[%clk 0:03:02]}  Nge7 {[%clk 0:02:57]} 7. Nc3 {[%clk 0:03:03]}  d6 {[%clk 0:02:56]} 8. Rb1 {[%clk 0:03:03]}  O-O {[%clk 0:02:56]} 9. a3 {[%clk 0:03:03]}  a5 {[%clk 0:02:34]} 10. b3 {[%clk 0:03:02]}  h6 {[%clk 0:02:32]} 11. Bb2 {[%clk 0:03:02]}  f5 {[%clk 0:02:31]} 12. e3 {[%clk 0:03:02]}  Kh7 {[%clk 0:02:18]} 13. d4 {[%clk 0:03:01]}  e4 {[%clk 0:01:27]} 14. Ne1 {[%clk 0:02:59]}  cxd4 {[%clk 0:01:17]} 15. exd4 {[%clk 0:03:00]}  Nxd4 {[%clk 0:01:11]} 16. Nd5 {[%clk 0:02:46]}  Nxd5 {[%clk 0:00:57]} 17. cxd5 {[%clk 0:02:41]}  Qb6 {[%clk 0:00:46]} 18. Nc2 {[%clk 0:02:11]}  Nxc2 {[%clk 0:00:24]} 19. Qxc2 {[%clk 0:02:06]}  Bd7 {[%clk 0:00:13]} 20. Bxg7 {[%clk 0:02:03]}  Kxg7 {[%clk 0:00:14]} 21. h4 {[%clk 0:01:55]}  Rac8 {[%clk 0:00:12]} 22. Qb2+ {[%clk 0:01:54]}  Kf7 {[%clk 0:00:11]} 23. h5 {[%clk 0:01:52]}  g5 {[%clk 0:00:11]} 24. Rfc1 {[%clk 0:01:31]}  Rfe8 {[%clk 0:00:11]} 25. Rc4 {[%clk 0:01:16]}  Rxc4 {[%clk 0:00:10]} 26. bxc4 {[%clk 0:01:17]}  Qxb2 {[%clk 0:00:09]} 27. Rxb2 {[%clk 0:01:18]}  Rb8 {[%clk 0:00:09]} 28. g4 {[%clk 0:01:17]}  b6 {[%clk 0:00:08]} 29. gxf5 {[%clk 0:01:08]}  Bxf5 {[%clk 0:00:09]} 30. Re2 {[%clk 0:01:05]}  Re8 {[%clk 0:00:08]} 31. Rb2 {[%clk 0:01:04]}  Rb8 {[%clk 0:00:08]} 32. Kf1 {[%clk 0:01:00]}  Kf6 {[%clk 0:00:08]} 33. Ke2 {[%clk 0:01:00]}  Ke5 {[%clk 0:00:08]} 34. Ke3 {[%clk 0:01:00]}  Rb7 {[%clk 0:00:06]} 35. Rb3 {[%clk 0:00:49]}  Rc7 {[%clk 0:00:06]} 36. Bf1 {[%clk 0:00:46]}  Rb7 {[%clk 0:00:06]} 37. Rb2 {[%clk 0:00:45]}  Bh7 {[%clk 0:00:06]} 38. Be2 {[%clk 0:00:44]}  Bf5 {[%clk 0:00:06]} 39. Rb1 {[%clk 0:00:42]}  Bh7 {[%clk 0:00:06]} 40. Bg4 {[%clk 0:00:39]}  Bf5 {[%clk 0:00:06]} 41. Be2 {[%clk 0:00:37]}  Bh7 {[%clk 0:00:05]} 42. Rb2 {[%clk 0:00:31]}  Bf5 {[%clk 0:00:05]} 43. Bd1 {[%clk 0:00:27]}  Bh7 {[%clk 0:00:05]} 44. Ba4 {[%clk 0:00:27]}  Rb8 {[%clk 0:00:03]} 45. Bd1 {[%clk 0:00:24]}  Bf5 {[%clk 0:00:02]} 46. Be2 {[%clk 0:00:18]}  Rb7 {[%clk 0:00:02]} 1/2-1/2

[Event "January 9 Early 2024"]
[Site "https://www.chess.com"]
[Date "2024.01.11"]
[Round "6"]
[White "Salem, A.R. Saleh"]
[Black "Zhu, Hengyi"]
[Result "1-0"]
[Board "179"]
[TimeControl "180+1"]
[WhiteFideId "9301348"]
[BlackFideId "8611211"]
[WhiteElo "2984"]
[BlackElo "2774"]
[WhiteTeam "UAE"]
[BlackTeam "CHN"]
[WhiteClock "0:00:20"]
[BlackClock "0:00:18"]

1. d4 {[%clk 0:02:57]}  Nf6 {[%clk 0:02:59]} 2. c4 {[%clk 0:02:58]}  e6 {[%clk 0:03:00]} 3. Nc3 {[%clk 0:02:58]}  Bb4 {[%clk 0:03:00]} 4. e3 {[%clk 0:02:59]}  O-O {[%clk 0:02:59]} 5. Bd3 {[%clk 0:02:59]}  d5 {[%clk 0:02:59]} 6. Nf3 {[%clk 0:02:59]}  c5 {[%clk 0:02:59]} 7. O-O {[%clk 0:02:58]}  dxc4 {[%clk 0:03:00]} 8. Bxc4 {[%clk 0:02:59]}  Nc6 {[%clk 0:03:01]} 9. a3 {[%clk 0:02:58]}  Ba5 {[%clk 0:03:01]} 10. Qd3 {[%clk 0:02:55]}  a6 {[%clk 0:02:53]} 11. dxc5 {[%clk 0:02:54]}  Qxd3 {[%clk 0:02:52]} 12. Bxd3 {[%clk 0:02:55]}  Bxc3 {[%clk 0:02:52]} 13. bxc3 {[%clk 0:02:56]}  Nd7 {[%clk 0:02:47]} 14. a4 {[%clk 0:02:56]}  Nxc5 {[%clk 0:02:47]} 15. Bc2 {[%clk 0:02:57]}  Na5 {[%clk 0:02:38]} 16. Ba3 {[%clk 0:02:47]}  b6 {[%clk 0:02:37]} 17. Ng5 {[%clk 0:02:23]}  f5 {[%clk 0:01:58]} 18. Rab1 {[%clk 0:02:18]}  Nc4 {[%clk 0:01:57]} 19. Bxc5 {[%clk 0:01:50]}  bxc5 {[%clk 0:01:58]} 20. Rfd1 {[%clk 0:01:32]}  Na3 {[%clk 0:01:45]} 21. Rb2 {[%clk 0:01:32]}  Nxc2 {[%clk 0:01:45]} 22. Rxc2 {[%clk 0:01:33]}  h6 {[%clk 0:01:45]} 23. Nf3 {[%clk 0:01:33]}  Bb7 {[%clk 0:01:46]} 24. Ne5 {[%clk 0:01:34]}  Rfd8 {[%clk 0:01:34]} 25. Rcd2 {[%clk 0:01:31]}  Rxd2 {[%clk 0:01:09]} 26. Rxd2 {[%clk 0:01:31]}  a5 {[%clk 0:01:08]} 27. f3 {[%clk 0:01:11]}  Ra6 {[%clk 0:00:40]} 28. h4 {[%clk 0:01:03]}  h5 {[%clk 0:00:35]} 29. Kf2 {[%clk 0:01:01]}  Kh7 {[%clk 0:00:34]} 30. Kg3 {[%clk 0:01:00]}  Bc6 {[%clk 0:00:32]} 31. Rd6 {[%clk 0:00:51]}  Bb7 {[%clk 0:00:28]} 32. Rd8 {[%clk 0:00:46]}  Bc6 {[%clk 0:00:21]} 33. Rd6 {[%clk 0:00:29]}  Bb7 {[%clk 0:00:21]} 34. Rxa6 {[%clk 0:00:30]}  Bxa6 {[%clk 0:00:22]} 35. Nd7 {[%clk 0:00:26]}  c4 {[%clk 0:00:20]} 36. Nc5 {[%clk 0:00:23]}  Bc8 {[%clk 0:00:20]} 37. Kf4 {[%clk 0:00:24]}  Kg6 {[%clk 0:00:20]} 38. Ke5 {[%clk 0:00:24]}  Kf7 {[%clk 0:00:20]} 39. Kd6 {[%clk 0:00:24]}  Kf6 {[%clk 0:00:20]} 40. f4 {[%clk 0:00:22]}  Kf7 {[%clk 0:00:20]} 41. Kc7 {[%clk 0:00:22]}  e5 {[%clk 0:00:18]} 42. Kxc8 {[%clk 0:00:21]}  g5 {[%clk 0:00:18]} 43. hxg5 {[%clk 0:00:20]} 1-0

[Event "January 9 Early 2024"]
[Site "https://www.chess.com"]
[Date "2024.01.11"]
[Round "6"]
[White "Bartel, Mateusz"]
[Black "Rojas Salas, Steven"]
[Result "1-0"]
[Board "181"]
[TimeControl "180+1"]
[WhiteFideId "1112635"]
[BlackFideId "3819434"]
[WhiteElo "2826"]
[BlackElo "2624"]
[WhiteTeam "POL"]
[BlackTeam "PER"]
[WhiteClock "0:00:30"]
[BlackClock "0:00:05"]

1. e4 {[%clk 0:02:59]}  c5 {[%clk 0:03:00]} 2. Nf3 {[%clk 0:02:55]}  e6 {[%clk 0:03:00]} 3. g3 {[%clk 0:02:54]}  d5 {[%clk 0:02:59]} 4. exd5 {[%clk 0:02:53]}  exd5 {[%clk 0:02:59]} 5. Bg2 {[%clk 0:02:53]}  Qe7+ {[%clk 0:02:59]} 6. Qe2 {[%clk 0:02:53]}  Qxe2+ {[%clk 0:02:59]} 7. Kxe2 {[%clk 0:02:54]}  Nc6 {[%clk 0:03:00]} 8. Re1 {[%clk 0:02:47]}  Be6 {[%clk 0:03:00]} 9. Kf1 {[%clk 0:02:44]}  Bd6 {[%clk 0:03:00]} 10. Ng5 {[%clk 0:02:40]}  Kd7 {[%clk 0:03:01]} 11. Nxe6 {[%clk 0:02:39]}  fxe6 {[%clk 0:03:02]} 12. d3 {[%clk 0:02:27]}  Nf6 {[%clk 0:03:01]} 13. c4 {[%clk 0:02:26]}  Nb4 {[%clk 0:02:52]} 14. Na3 {[%clk 0:02:23]}  Nxd3 {[%clk 0:02:48]} 15. Rd1 {[%clk 0:02:23]}  Nxc1 {[%clk 0:02:38]} 16. Raxc1 {[%clk 0:02:22]}  d4 {[%clk 0:02:33]} 17. b4 {[%clk 0:02:06]}  Rab8 {[%clk 0:02:01]} 18. Nc2 {[%clk 0:01:57]}  b6 {[%clk 0:01:59]} 19. b5 {[%clk 0:01:58]}  Ng4 {[%clk 0:01:55]} 20. h3 {[%clk 0:01:54]}  Ne5 {[%clk 0:01:52]} 21. Ne1 {[%clk 0:01:54]}  Rbf8 {[%clk 0:01:50]} 22. Nd3 {[%clk 0:01:53]}  Ng6 {[%clk 0:01:41]} 23. Ke2 {[%clk 0:01:45]}  Rf6 {[%clk 0:01:38]} 24. a4 {[%clk 0:01:39]}  Rhf8 {[%clk 0:01:37]} 25. Be4 {[%clk 0:01:30]}  h5 {[%clk 0:01:36]} 26. h4 {[%clk 0:01:27]}  Kc7 {[%clk 0:01:29]} 27. Rf1 {[%clk 0:01:22]}  Ne7 {[%clk 0:01:17]} 28. Ra1 {[%clk 0:01:19]}  Nf5 {[%clk 0:00:55]} 29. a5 {[%clk 0:01:00]}  bxa5 {[%clk 0:00:37]} 30. Rxa5 {[%clk 0:01:00]}  Nxg3+ {[%clk 0:00:34]} 31. fxg3 {[%clk 0:00:59]}  Rxf1 {[%clk 0:00:34]} 32. Rxa7+ {[%clk 0:00:58]}  Kd8 {[%clk 0:00:35]} 33. Ra8+ {[%clk 0:00:50]}  Ke7 {[%clk 0:00:30]} 34. Ra7+ {[%clk 0:00:51]}  Kf6 {[%clk 0:00:30]} 35. Kxf1 {[%clk 0:00:50]}  Bxg3 {[%clk 0:00:27]} 36. Ke2 {[%clk 0:00:43]}  Bxh4 {[%clk 0:00:27]} 37. Nxc5 {[%clk 0:00:41]}  Rc8 {[%clk 0:00:22]} 38. Nd7+ {[%clk 0:00:40]}  Kg5 {[%clk 0:00:20]} 39. c5 {[%clk 0:00:38]}  Kf4 {[%clk 0:00:19]} 40. Kd3 {[%clk 0:00:38]}  Bd8 {[%clk 0:00:10]} 41. b6 {[%clk 0:00:36]}  Bxb6 {[%clk 0:00:05]} 42. cxb6 {[%clk 0:00:33]}  e5 {[%clk 0:00:06]} 43. Rc7 {[%clk 0:00:31]}  Rf8 {[%clk 0:00:02]} 44. b7 {[%clk 0:00:30]}  Rd8 {[%clk 0:00:02]} 45. b8=Q {[%clk 0:00:29]}  Rxb8 {[%clk 0:00:02]} 46. Nxb8 {[%clk 0:00:30]}  g5 {[%clk 0:00:02]} 47. Rf7+ {[%clk 0:00:30]}  Kg3 {[%clk 0:00:02]} 48. Nc6 {[%clk 0:00:31]}  g4 {[%clk 0:00:02]} 49. Nxe5 {[%clk 0:00:31]}  h4 {[%clk 0:00:03]} 50. Rg7 {[%clk 0:00:31]}  Kh2 {[%clk 0:00:04]} 51. Rxg4 {[%clk 0:00:29]}  h3 {[%clk 0:00:05]} 52. Nf3+ {[%clk 0:00:29]}  Kh1 {[%clk 0:00:05]} 53. Rg1# {[%clk 0:00:30]} 1-0

[Event "January 9 Early 2024"]
[Site "https://www.chess.com"]
[Date "2024.01.11"]
[Round "6"]
[White "Garriga Cazorla, Pere"]
[Black "Dmitrenko, Viktor"]
[Result "1-0"]
[Board "182"]
[TimeControl "180+1"]
[WhiteFideId "32011601"]
[BlackFideId "14110270"]
[WhiteElo "2710"]
[BlackElo "2455"]
[WhiteTeam "ESP"]
[BlackTeam "UKR"]
[WhiteClock "0:00:08"]
[BlackClock "0:00:03"]

1. d4 {[%clk 0:03:00]}  e6 {[%clk 0:03:00]} 2. c4 {[%clk 0:03:00]}  Nf6 {[%clk 0:02:58]} 3. Nf3 {[%clk 0:03:00]}  d5 {[%clk 0:02:52]} 4. Nc3 {[%clk 0:03:00]}  a6 {[%clk 0:02:50]} 5. cxd5 {[%clk 0:02:55]}  exd5 {[%clk 0:02:51]} 6. Bg5 {[%clk 0:02:54]}  Be7 {[%clk 0:02:44]} 7. e3 {[%clk 0:02:53]}  Be6 {[%clk 0:02:37]} 8. Bd3 {[%clk 0:02:43]}  O-O {[%clk 0:02:27]} 9. O-O {[%clk 0:02:43]}  c5 {[%clk 0:02:14]} 10. dxc5 {[%clk 0:02:42]}  Bxc5 {[%clk 0:02:09]} 11. Rc1 {[%clk 0:02:42]}  Be7 {[%clk 0:02:04]} 12. Nd4 {[%clk 0:02:38]}  Nc6 {[%clk 0:01:57]} 13. Nxc6 {[%clk 0:02:29]}  bxc6 {[%clk 0:01:56]} 14. Na4 {[%clk 0:02:30]}  Bd7 {[%clk 0:01:28]} 15. Nc5 {[%clk 0:02:27]}  h6 {[%clk 0:01:21]} 16. Bh4 {[%clk 0:02:13]}  a5 {[%clk 0:01:19]} 17. Qa4 {[%clk 0:01:59]}  Bxc5 {[%clk 0:01:07]} 18. Rxc5 {[%clk 0:01:58]}  Re8 {[%clk 0:01:08]} 19. Rfc1 {[%clk 0:01:48]}  g5 {[%clk 0:00:52]} 20. Bg3 {[%clk 0:01:44]}  Ne4 {[%clk 0:00:52]} 21. R5c2 {[%clk 0:01:32]}  h5 {[%clk 0:00:46]} 22. Bxe4 {[%clk 0:00:59]}  Rxe4 {[%clk 0:00:47]} 23. Qb3 {[%clk 0:00:59]}  Qe7 {[%clk 0:00:39]} 24. Bc7 {[%clk 0:00:51]}  d4 {[%clk 0:00:28]} 25. Bb6 {[%clk 0:00:36]}  Rb8 {[%clk 0:00:27]} 26. Bc5 {[%clk 0:00:36]}  Rxb3 {[%clk 0:00:26]} 27. Bxe7 {[%clk 0:00:36]}  Rb5 {[%clk 0:00:26]} 28. Bc5 {[%clk 0:00:31]}  dxe3 {[%clk 0:00:24]} 29. Bxe3 {[%clk 0:00:31]}  f6 {[%clk 0:00:20]} 30. h3 {[%clk 0:00:26]}  Reb4 {[%clk 0:00:18]} 31. Rd2 {[%clk 0:00:19]}  Be6 {[%clk 0:00:16]} 32. Rxc6 {[%clk 0:00:18]}  Kf7 {[%clk 0:00:14]} 33. b3 {[%clk 0:00:16]}  a4 {[%clk 0:00:13]} 34. Rc7+ {[%clk 0:00:17]}  Kg6 {[%clk 0:00:13]} 35. Rd6 {[%clk 0:00:15]}  Re5 {[%clk 0:00:11]} 36. Bd2 {[%clk 0:00:13]}  Rbe4 {[%clk 0:00:08]} 37. Bc3 {[%clk 0:00:12]}  Rd5 {[%clk 0:00:06]} 38. Rb6 {[%clk 0:00:09]}  axb3 {[%clk 0:00:04]} 39. axb3 {[%clk 0:00:10]}  Rd3 {[%clk 0:00:04]} 40. Rcc6 {[%clk 0:00:09]}  Kf7 {[%clk 0:00:03]} 41. b4 {[%clk 0:00:09]}  h4 {[%clk 0:00:03]} 42. b5 {[%clk 0:00:08]} 1-0